Cogmind - Beta 15 @@@ ROGUE MODE // 2025.05.25 @ 03:18:50 Player: Elias Result: Destroyed by H-71 Marshal with Heavy Mass Driver Performance ------------- Evolutions (7) 3500 Regions Visited (14) 2800 Robots Destroyed (24) 120 Value Destroyed (966) 966 Prototype IDs (23) 460 Alien Tech Used (0) 0 Bonus (800) 800 TOTAL SCORE: 8646 Bonus ------- Registered with UFD 300 Met Optimus in HQ 500 Cogmind --------- Core Integrity 0/1300 Matter 238/300 Energy 99/100 System Corruption 0% Temperature Cool (0) Movement Core (50) Location -3/Research Parts ------- > --- POWER (2) -------- (None) > --- PROPULSION (6) --- (None) > --- UTILITY (9) ------ (None) > --- WEAPON (4) ------- (None) > --- INVENTORY (5) ---- Particle Reactor Improved Energy Well (400) Advanced Force Field Improved Remote Shield Peak State ------------ > --- POWER ------------ Neutrino Core Graviton Reactor > --- PROPULSION ------- Flexi-carbon Leg Flexi-carbon Leg Armored Leg Improved VSS Leg > --- UTILITY ---------- Power Amplifier Advanced Cooling System Small Storage Unit Advanced Weight Redist. System Active Sensor Suite Advanced Force Field > --- WEAPON ----------- Heavy Phase Cannon Heavy Phase Cannon Thermal Lance > --- INVENTORY -------- Neutrino Core Neutrino Core Armored Leg Precision Matter Filter Advanced Force Field Wave Gun Disruptor Cannon Heavy Phase Cannon [Rating: 112] Favorites ----------- Power Graviton Reactor Engine Ion Engine Power Core Neutrino Core Reactor Graviton Reactor Propulsion Flexi-carbon Leg Treads Medium Treads Leg Flexi-carbon Leg Flight Unit Nuclear Pulse Array Utility Small Storage Unit Device Advanced Cooling System Storage Small Storage Unit Processor Core Analyzer Protection Improved Medium Armor Plating Weapon Heavy Phase Cannon Energy Gun Phase Gun Energy Cannon Heavy Phase Cannon Ballistic Gun Light Assault Rifle Ballistic Cannon Advanced Assault Cannon Launcher Heavy Shock Bomb Launcher Piercing Weapon Thermal Lance Build | -11 -10 -10 -7 -5 -5 -5 -5 -4 -4 -4 -4 -4 -3 -3 ------- Run | Yrd Mat Sub Scr Fac Upp Upp Zhi Pro Fac Upp Upp War Pro Res Slots Evolved 14 | . . . . 10 . . . . 2 . . . . 2 Power 1 | . . . . 1 . . . . . . . . . . Propulsion 4 | . . . . 2 . . . . 1 . . . . 1 Utility 7 | . . . . 6 . . . . 1 . . . . . Weapon 2 | . . . . 1 . . . . . . . . . 1 Parts Attached 71 | 6 1 . 21 16 1 . . 5 11 1 . . 3 6 Power 9 | 1 . . 2 2 . . . 2 2 . . . . . Engine 1 | 1 . . . . . . . . . . . . . . Core 5 | . . . 1 2 . . . 2 . . . . . . Reactor 3 | . . . 1 . . . . . 2 . . . . . Propulsion 20 | 2 . . 9 3 . . . 2 2 . . . . 2 Treads 1 | . . . . . . . . 1 . . . . . . Leg 13 | 2 . . 7 3 . . . 1 . . . . . . Wheel . | . . . . . . . . . . . . . . . Hover . | . . . . . . . . . . . . . . . Flight 6 | . . . 2 . . . . . 2 . . . . 2 Utility 25 | 1 1 . 5 8 . . . 1 4 . . . 3 2 Device 17 | . . . 2 8 . . . 1 2 . . . 2 2 Storage 2 | 1 . . . . . . . . 1 . . . . . Processor 1 | . . . . . . . . . 1 . . . . . Hackware . | . . . . . . . . . . . . . . . Protection 5 | . 1 . 3 . . . . . . . . . 1 . Artifact . | . . . . . . . . . . . . . . . Weapon 17 | 2 . . 5 3 1 . . . 3 1 . . . 2 Energy Gun 3 | . . . . . 1 . . . 1 1 . . . . Energy Cannon 4 | . . . . 2 . . . . 1 . . . . 1 Ballistic Gun 6 | 2 . . 3 1 . . . . . . . . . . Ballistic Cannon 2 | . . . 1 . . . . . . . . . . 1 Launcher 1 | . . . . . . . . . 1 . . . . . Special Weapon . | . . . . . . . . . . . . . . . Impact Weapon . | . . . . . . . . . . . . . . . Slashing Weapon . | . . . . . . . . . . . . . . . Piercing Weapon 1 | . . . 1 . . . . . . . . . . . Special Melee Weapon . | . . . . . . . . . . . . . . . Unidentified Prototypes 8 | . . . 4 1 . . . . 1 . . . . 2 Parts Lost 33 | . . . . 3 . . . 19 2 . . . 1 8 Power 6 | . . . . 1 . . . 4 . . . . . 1 Propulsion 9 | . . . . . . . . 5 1 . . . . 3 Utility 14 | . . . . 1 . . . 7 1 . . . 1 4 Weapon 4 | . . . . 1 . . . 3 . . . . . . Highest Loss Streak 13 | . . . . 2 . . . 13 2 . . . 1 5 To Critical Strikes 2 | . . . . . . . . 1 1 . . . . . Average Backups 6 | 4 6 8 6 5 7 8 8 6 4 5 5 5 4 4 Power 1 | . 1 1 . 1 2 2 2 1 . 1 1 1 1 1 Propulsion 1 | 1 2 4 1 . 1 1 1 . . . . . . . Utility 2 | . 1 2 2 1 2 3 3 2 2 3 3 3 3 3 Weapon 1 | . 1 1 1 1 2 2 2 2 1 1 1 1 . . Tool/Special . | . . . . . . . . . . . . . . . Unused Backups 20 | 1 . . 10 2 1 . . 1 2 . . . . 3 Power 4 | . . . 2 . . . . . 1 . . . . 1 Propulsion 4 | 1 . . 3 . . . . . . . . . . . Utility 7 | . . . 3 . . . . 1 1 . . . . 2 Weapon 5 | . . . 2 2 1 . . . . . . . . . Tool/Special . | . . . . . . . . . . . . . . . Average Slot Usage (%) 81 | . 96 100 100 82 88 88 88 68 12 31 31 31 39 35 Engine 1 | . 14 14 2 . . . . . . . . . . . Core 6 | . . . 10 4 5 5 5 6 . . . . . . Reactor 2 | . . . . 5 5 5 5 2 2 5 5 5 5 3 Leg 20 | . 28 28 27 20 23 23 23 14 . . . . . . Flight 1 | . . . . . . . . . 5 10 10 10 10 11 Device 13 | . . . . 26 29 29 29 24 2 10 10 10 13 13 Storage 7 | . 14 14 14 5 5 5 5 4 . . . . . . Protection 5 | . 11 14 13 1 . . . . . . . . 4 2 Energy Gun 1 | . . . . . 2 5 5 3 . . . . 4 1 Energy Cannon 2 | . . . . 6 7 5 5 4 . . . . . . Ballistic Gun 8 | . 28 28 18 2 . . . . . . . . . . Ballistic Cannon 3 | . . . 8 . . . . . . . . . . 1 Piercing Weapon 2 | . . . 1 5 5 5 5 4 . . . . . . Peak Build Rating 112 | 6 7 7 51 112 112 112 112 112 57 56 50 50 60 76 Average Rating 61 | 3 6 7 23 104 111 112 112 90 23 50 50 50 56 51 On Entrance 51 | . 6 7 7 48 111 112 112 112 2 50 50 50 50 55 Naked Turns 185 | . . . . . . . . 76 66 . . . . 43 Heaviest Build 80 | 12 15 15 32 80 80 76 76 78 38 26 26 26 26 33 Greatest Support 80 | 20 20 20 39 80 80 80 80 80 26 26 26 26 26 33 Greatest Overweight (x) 2 | 2 . . 1 1 . . . 2 1 . . . . 1 Average Overweight (x) . | . . . . . . . . . . . . . . . Largest Inventory Capacity 8 | 8 8 8 8 8 8 8 8 8 5 5 5 5 5 5 Average Capacity 7 | 5 8 8 8 8 8 8 8 7 5 5 5 5 5 5 Most Carried 8 | 5 8 8 8 8 8 8 8 8 5 5 5 5 5 5 Average Carried 7 | 4 6 8 7 6 7 8 8 6 4 5 5 5 4 4 Final Capacity 8 | 8 8 8 8 8 8 8 8 5 5 5 5 5 5 5 Final Carried 8 | 4 8 8 8 8 8 8 8 5 5 5 5 5 4 4 Class Distribution -------------------- 54% | Mutant 37% | Scavenger-Assassin 3% | Assassin Dominant Class ---------------- Mutant | -10/Materials Mutant | -10/Subcaves Mutant | -7/Scraptown Scavenger-Assassin | -5/Factory Scavenger-Assassin | -5/Upper Caves Scavenger-Assassin | -5/Upper Caves Scavenger-Assassin | -5/Zhirov Scavenger-Assassin | -4/Proximity Caves Mutant | -4/Factory Mutant | -4/Upper Caves Mutant | -4/Upper Caves Mutant | -4/Warlord Mutant | -3/Proximity Caves Mutant | -3/Research Resources | -11 -10 -10 -7 -5 -5 -5 -5 -4 -4 -4 -4 -4 -3 -3 ----------- Run | Yrd Mat Sub Scr Fac Upp Upp Zhi Pro Fac Upp Upp War Pro Res Matter Collected 1265 | 264 10 4 349 284 55 25 . 56 48 133 4 . 30 3 Remotely . | . . . . . . . . . . . . . . . Salvage Created 1255 | 29 . . 304 373 211 . . 171 167 . . . . . Parts 44 | 5 . . 10 13 6 . . 2 8 . . . . . Haulers Intercepted . | . . . . . . . . . . . . . . . Recyclers Shooed . | . . . . . . . . . . . . . . . Parts Field Recycled . | . . . . . . . . . . . . . . . Retrieved Matter . | . . . . . . . . . . . . . . . Parts Self-Destructed 39 | . . 4 . . 30 2 . 3 . . . . . . Prevented 3 | . . . . . . 3 . . . . . . . . Kills | -11 -10 -10 -7 -5 -5 -5 -5 -4 -4 -4 -4 -4 -3 -3 ------- Run | Yrd Mat Sub Scr Fac Upp Upp Zhi Pro Fac Upp Upp War Pro Res Combat Hostiles Destroyed 18 | . . . 5 3 3 . . 3 4 . . . . . Guns 8 | . . . 5 2 . . . 1 . . . . . . Cannons 6 | . . . . 1 3 . . 2 . . . . . . AOE 4 | . . . . . . . . . 4 . . . . . Classes Destroyed 14 | 1 . . 4 6 1 . . 1 1 . . . . . Worker 2 | . . . . . . . . . 2 . . . . . Builder 1 | . . . . 1 . . . . . . . . . . Tunneler 1 | 1 . . . . . . . . . . . . . . Recycler 1 | . . . . 1 . . . . . . . . . . Watcher 1 | . . . . 1 . . . . . . . . . . Swarmer 5 | . . . . . . . . 1 4 . . . . . Grunt 2 | . . . . . 2 . . . . . . . . . Sentry 2 | . . . . 1 1 . . . . . . . . . Hunter 3 | . . . . 1 . . . 2 . . . . . . Programmer 1 | . . . . 1 . . . . . . . . . . Explorer 1 | . . . 1 . . . . . . . . . . . Ranger 1 | . . . 1 . . . . . . . . . . . Scrapper 1 | . . . 1 . . . . . . . . . . . Mutant 2 | . . . 2 . . . . . . . . . . . Best Kill Streak 6 | 1 . . 4 1 3 . . 2 6 . . . . . Combat Bots Only 4 | . . . 4 1 3 . . 2 4 . . . . . Max Kills in Single Turn 3 | 1 . . 1 1 1 . . 1 3 . . . . . Gunslinging . | . . . . . . . . . . . . . . . Exploded 2 | . . . . . . . . . 2 . . . . . Melee . | . . . . . . . . . . . . . . . Uniques/NPCs Destroyed . | . . . . . . . . . . . . . . . Combat | -11 -10 -10 -7 -5 -5 -5 -5 -4 -4 -4 -4 -4 -3 -3 -------- Run | Yrd Mat Sub Scr Fac Upp Upp Zhi Pro Fac Upp Upp War Pro Res Hostile Shots Fired 622 | . . 12 29 42 18 . . 269 62 4 18 . 20 148 Missed 230 | . . 4 8 6 6 . . 78 26 1 12 . 10 79 Hits 392 | . . 8 21 36 12 . . 191 36 3 6 . 10 69 Projectile 392 | . . 8 21 36 12 . . 191 36 3 6 . 10 69 Critical Strikes 18 | . . . 2 2 1 . . 4 3 . . . 1 5 Actively Blocked 1 | . . . . . . . . . . . . . 1 . Part Disruptions 1 | . . . . 1 . . . . . . . . . . Damage Taken 6471 | . . 172 288 662 132 . . 2594 537 48 113 . 221 1704 Core 2637 | . . 19 80 97 26 . . 666 295 13 14 . 72 1355 Absorbed by Shields 577 | . . . . . 133 . . 444 . . . . . . Redirected to Shielding 91 | . . . . 19 . . . . . . . . 56 16 Ignored by Resistances 36 | . . . . . . . . . . 18 12 . 6 . Core Remaining (%) 61 | 100 . . 60 . . . . 21 . . . . 65 . Volleys Fired 86 | 2 . 15 17 21 6 . . 19 5 . . . 1 . Largest 2 | 2 . 2 2 2 2 . . 2 1 . . . 1 . Hottest 180 | 40 . 40 73 180 180 . . 178 46 . . . 88 . Shots Fired 128 | 4 . 30 18 27 12 . . 31 5 . . . 1 . Gun 82 | 4 . 30 17 18 . . . 12 . . . . 1 . Cannon 41 | . . . 1 9 12 . . 19 . . . . . . Launcher 5 | . . . . . . . . . 5 . . . . . Special . | . . . . . . . . . . . . . . . Kinetic 70 | 4 . 30 18 18 . . . . . . . . . . Thermal 53 | . . . . 9 12 . . 31 . . . . 1 . Explosive . | . . . . . . . . . . . . . . . Electromagnetic 5 | . . . . . . . . . 5 . . . . . Robot Hit Streak 32 | 3 . 27 32 6 7 . . 10 1 . . . . . Robot Miss Streak 4 | . . 1 3 1 1 . . 4 1 . . . 1 . Penetration Max . | . . . . . . . . . . . . . . . Secondary Targets . | . . . . . . . . . . . . . . . Shots Hit Robots 94 | 3 . 28 12 20 9 . . 20 2 . . . . . Core Hits 34 | 2 . 2 5 8 4 . . 7 6 . . . . . Critical Kills . | . . . . . . . . . . . . . . . Critical Parts Destroyed 1 | . . . 1 . . . . . . . . . . . Critical Strikes 4 | . . . 1 . . . . 3 . . . . . . Burn 3 | . . . . . . . . 3 . . . . . . Destroy 1 | . . . 1 . . . . . . . . . . . Melee Attacks 2 | . . . . 2 . . . . . . . . . . Thermal 2 | . . . . 2 . . . . . . . . . . Impact . | . . . . . . . . . . . . . . . Slashing . | . . . . . . . . . . . . . . . Piercing . | . . . . . . . . . . . . . . . Sneak Attacks 2 | . . . . 2 . . . . . . . . . . Combat Hostiles . | . . . . . . . . . . . . . . . Follow-up Attacks . | . . . . . . . . . . . . . . . Damage Inflicted 2554 | 27 . 45 276 789 309 . . 762 346 . . . . . Guns 932 | 27 . 45 276 297 . . . 287 . . . . . . Cannons 1015 | . . . . 231 309 . . 475 . . . . . . Explosions 346 | . . . . . . . . . 346 . . . . . Melee 261 | . . . . 261 . . . . . . . . . . Ramming . | . . . . . . . . . . . . . . . Kinetic 645 | 27 . 45 276 297 . . . . . . . . . . Thermal 1563 | . . . . 492 309 . . 762 . . . . . . Explosive . | . . . . . . . . . . . . . . . Electromagnetic 346 | . . . . . . . . . 346 . . . . . Impact . | . . . . . . . . . . . . . . . Slashing . | . . . . . . . . . . . . . . . Piercing . | . . . . . . . . . . . . . . . Highest Corruption 2 | . . . . 1 1 1 1 1 . . . . 2 . Average Corruption 1 | . . . . 1 1 1 1 1 . . . . 2 . Corruption Purged . | . . . . . . . . . . . . . . . Corruption Blocked . | . . . . . . . . . . . . . . . Effects 22 | . . . . 2 6 11 . 3 . . . . . . Message Errors 5 | . . . . . 2 3 . . . . . . . . Matter Fused 7 | . . . . 1 2 3 . 1 . . . . . . Heat Flow Errors 2 | . . . . . 2 . . . . . . . . . Energy Discharges 3 | . . . . . . 3 . . . . . . . . Data Loss (minor) 2 | . . . . . . 1 . 1 . . . . . . Data Loss (major) 2 | . . . . . . 1 . 1 . . . . . . Weapon Failures 1 | . . . . 1 . . . . . . . . . . Overload Shots . | . . . . . . . . . . . . . . . Overflow Damage 258 | . . . . 201 28 . . 24 5 . . . . . Projectiles 52 | . . . . . 28 . . 24 . . . . . . Explosions 5 | . . . . . . . . . 5 . . . . . Melee 201 | . . . . 201 . . . . . . . . . . Knockbacks . | . . . . . . . . . . . . . . . Impact . | . . . . . . . . . . . . . . . Kinetic . | . . . . . . . . . . . . . . . Secondary . | . . . . . . . . . . . . . . . Self-Inflicted Damage 18 | . . . . . . . . . 18 . . . . . Shots 2 | . . . . . . . . . 2 . . . . . Rammed . | . . . . . . . . . . . . . . . Targets Rammed . | . . . . . . . . . . . . . . . Kicked . | . . . . . . . . . . . . . . . Crushed . | . . . . . . . . . . . . . . . Highest Temperature 202 | . . . 27 80 202 . . 84 . . . . 40 . Average Temperature 38 | . . . 8 34 58 . . 35 . . . . 26 . Received Heat Transfer 414 | . . 54 140 27 32 . . 4 112 18 18 . 9 . Siege Activations . | . . . . . . . . . . . . . . . Martial Activations . | . . . . . . . . . . . . . . . Shielding Activations . | . . . . . . . . . . . . . . . Robots Disrupted . | . . . . . . . . . . . . . . . Combat Hostiles . | . . . . . . . . . . . . . . . Robots Corrupted . | . . . . . . . . . . . . . . . Combat Hostiles . | . . . . . . . . . . . . . . . Parts Fried 1 | . . . . . . . . . 1 . . . . . Impact Corruptions . | . . . . . . . . . . . . . . . Robots Melted . | . . . . . . . . . . . . . . . Combat Hostiles . | . . . . . . . . . . . . . . . Parts Melted 6 | . . . . 1 2 . . 3 . . . . . . Heat Transferred 1942 | . . . . 462 333 . . 1147 . . . . . . Parts Sabotaged . | . . . . . . . . . . . . . . . Parts Stolen . | . . . . . . . . . . . . . . . Parts Stripped . | . . . . . . . . . . . . . . . Power Chain Reactions . | . . . . . . . . . . . . . . . Alert | -11 -10 -10 -7 -5 -5 -5 -5 -4 -4 -4 -4 -4 -3 -3 ------- Run | Yrd Mat Sub Scr Fac Upp Upp Zhi Pro Fac Upp Upp War Pro Res Maximum Alert Level 2 | . . . . . . . . . 1 . . . . 2 Low Security (%) 78 | 100 100 . . 100 . . . . 97 . . . . . Level 1 8 | . . . . . . . . . 2 . . . . 36 Level 2 13 | . . . . . . . . . . . . . . 63 Level 3 . | . . . . . . . . . . . . . . . Level 4 . | . . . . . . . . . . . . . . . Level 5 . | . . . . . . . . . . . . . . . High Security . | . . . . . . . . . . . . . . . Max Security . | . . . . . . . . . . . . . . . Peak Influence 600 | 5 3 . . 100 . . . . 202 . . . . 600 Initial 600 | . 3 . . . . . . . 8 . . . . 600 Average 114 | . . . . 20 . . . . 52 . . . . 455 Influence Increases 1579 | 5 . . . 267 60 . . 115 266 90 120 . . 656 Destroy 0b10 Robot/C 260 | . . . . 60 60 . . 60 80 . . . . . Destroy 0b10 Robot/NC 30 | 5 . . . 15 . . . . 10 . . . . . Destroy Leader 52 | . . . . 32 . . . 10 10 . . . . . Successful Hack 32 | . . . . 7 . . . . 14 . . . . 11 Disable Machine 45 | . . . . 45 . . . . . . . . . . Destroy Structure 10 | . . . . 8 . . . . 2 . . . . . Advance Influence 600 | . . . . . . . . . . . . . . 600 Partial Spotted 15 | . . . . . . . . . . . . . . 15 Lose Combat Pursuer 435 | . . . . . . . . 45 150 90 120 . . 30 Active Sensor Use 100 | . . . . 100 . . . . . . . . . . Influence Decreases 1343 | . 5 . . 235 92 . . 101 88 252 60 90 . 420 Entered New Map 189 | . 2 . . . 13 . . . 6 72 6 90 . . Time Decay 861 | . 3 . . 208 79 . . 69 78 180 54 . . 190 Search Patrol Dispatched 150 | . . . . . . . . . . . . . . 150 Lost Part 143 | . . . . 27 . . . 32 4 . . . . 80 Squads Dispatched 8 | . 1 . . 4 . . . . . . . . . 3 Investigation 2 | . . . . 2 . . . . . . . . . . Extermination 2 | . . . . 2 . . . . . . . . . . Reinforcement 4 | . 1 . . . . . . . . . . . . 3 Assault . | . . . . . . . . . . . . . . . Garrison . | . . . . . . . . . . . . . . . Intercept . | . . . . . . . . . . . . . . . Searches Triggered 1 | . . . . . . . . . . . . . . 1 Construction Impeded . | . . . . . . . . . . . . . . . Haulers Reinforced . | . . . . . . . . . . . . . . . Active Scanning Responses 1 | . . . . 1 . . . . . . . . . . Cargo Convoy Interrupts . | . . . . . . . . . . . . . . . Stealth | -11 -10 -10 -7 -5 -5 -5 -5 -4 -4 -4 -4 -4 -3 -3 --------- Run | Yrd Mat Sub Scr Fac Upp Upp Zhi Pro Fac Upp Upp War Pro Res Distress Signals 1 | . 1 . . . . . . . . . . . . . Communications Jammed . | . . . . . . . . . . . . . . . Distress Signals . | . . . . . . . . . . . . . . . Times Spotted 94 | . 1 3 19 5 3 . . 11 15 5 8 . 7 17 Peak Tracking Total 9 | . 1 2 3 2 3 . . 6 7 3 8 . 3 9 Tactical Retreats 14 | . . . . . . . . 2 5 2 3 . 1 1 Traps | -11 -10 -10 -7 -5 -5 -5 -5 -4 -4 -4 -4 -4 -3 -3 ------- Run | Yrd Mat Sub Scr Fac Upp Upp Zhi Pro Fac Upp Upp War Pro Res Traps Triggered 1 | . . . . . . . . . . . . . . 1 Indirectly . | . . . . . . . . . . . . . . . Trap Hack Attempts . | . . . . . . . . . . . . . . . Triggered . | . . . . . . . . . . . . . . . Disarmed . | . . . . . . . . . . . . . . . Reprogrammed . | . . . . . . . . . . . . . . . Reused . | . . . . . . . . . . . . . . . Traps Extracted . | . . . . . . . . . . . . . . . Installed . | . . . . . . . . . . . . . . . Triggered . | . . . . . . . . . . . . . . . Machines | -11 -10 -10 -7 -5 -5 -5 -5 -4 -4 -4 -4 -4 -3 -3 ---------- Run | Yrd Mat Sub Scr Fac Upp Upp Zhi Pro Fac Upp Upp War Pro Res Machines Disabled 4 | . . . 1 3 . . . . . . . . . . Max in Single Turn 1 | . . . 1 1 . . . . . . . . . . Machines Repaired . | . . . . . . . . . . . . . . . Machines Dismantled . | . . . . . . . . . . . . . . . Machines Sabotaged . | . . . . . . . . . . . . . . . Overloaded Fab Kills . | . . . . . . . . . . . . . . . Hacking | -11 -10 -10 -7 -5 -5 -5 -5 -4 -4 -4 -4 -4 -3 -3 --------- Run | Yrd Mat Sub Scr Fac Upp Upp Zhi Pro Fac Upp Upp War Pro Res Machines Accessed 24 | . 1 . 8 5 1 1 . . 3 . . . . 5 Terminals 8 | . 1 . . 3 . . . . 2 . . . . 2 Fabricators 2 | . . . . 1 . . . . . . . . . 1 Repair Stations 1 | . . . . . . . . . . . . . . 1 Recycling Units 1 | . . . . . . . . . 1 . . . . . Scanalyzers 2 | . . . . 1 . . . . . . . . . 1 Garrison Access . | . . . . . . . . . . . . . . . Total Hacks 78 | . 2 . 49 14 1 1 . . 4 . . . . 7 Successful 62 | . . . 49 5 1 1 . . 2 . . . . 4 Failed 16 | . 2 . . 9 . . . . 2 . . . . 3 Catastrophic 2 | . . . . 1 . . . . . . . . . 1 Database Lockouts . | . . . . . . . . . . . . . . . Manual . | . . . . . . . . . . . . . . . Terminals 14 | . 2 . . 7 . . . . 2 . . . . 3 Fabricators 4 | . . . . 3 . . . . . . . . . 1 Repair Stations 1 | . . . . . . . . . . . . . . 1 Recycling Units 2 | . . . . . . . . . 2 . . . . . Scanalyzers 6 | . . . . 4 . . . . . . . . . 2 Garrison Access . | . . . . . . . . . . . . . . . Terminal Hacks 55 | . . . 49 1 1 1 . . 2 . . . . 1 Record 47 | . . . 47 . . . . . . . . . . . Open Door 3 | . . . 1 . 1 1 . . . . . . . . Open DSF 1 | . . . . 1 . . . . . . . . . . Emergency Access Points 2 | . . . . . . . . . 1 . . . . 1 Locate Traps 1 | . . . . . . . . . 1 . . . . . Proto ID Catalog 1 | . . . 1 . . . . . . . . . . . Fabricator Hacks 2 | . . . . 1 . . . . . . . . . 1 Build 2 | . . . . 1 . . . . . . . . . 1 Repair Station Hacks . | . . . . . . . . . . . . . . . Recycling Unit Hacks . | . . . . . . . . . . . . . . . Scanalyzer 5 | . . . . 3 . . . . . . . . . 2 Insert Component 2 | . . . . 1 . . . . . . . . . 1 Analyze 3 | . . . . 2 . . . . . . . . . 1 Garrison Access Hacks . | . . . . . . . . . . . . . . . Unauthorized Hacks . | . . . . . . . . . . . . . . . Terminals . | . . . . . . . . . . . . . . . Fabricators . | . . . . . . . . . . . . . . . Repair Stations . | . . . . . . . . . . . . . . . Recycling Units . | . . . . . . . . . . . . . . . Scanalyzers . | . . . . . . . . . . . . . . . Garrison Access . | . . . . . . . . . . . . . . . Data Cores Recovered . | . . . . . . . . . . . . . . . Used . | . . . . . . . . . . . . . . . Hacking Detections 10 | . 1 . . 5 . . . . 1 . . . . 3 Full Trace Events 1 | . . . . 1 . . . . . . . . . . Feedback Events . | . . . . . . . . . . . . . . . Feedback Blocked . | . . . . . . . . . . . . . . . Robot Schematics Acquired . | . . . . . . . . . . . . . . . Robots Built . | . . . . . . . . . . . . . . . Authchips . | . . . . . . . . . . . . . . . Time . | . . . . . . . . . . . . . . . Total Robot Build Rating . | . . . . . . . . . . . . . . . Part Schematics Acquired 2 | . . . . 1 . . . . . . . . . 1 Parts Built 4 | . . . . 2 . . . . . . . . . 2 Authchips . | . . . . . . . . . . . . . . . Time 256 | . . . . 128 . . . . . . . . . 128 Total Part Build Rating 32 | . . . . 16 . . . . . . . . . 16 Parts Repaired . | . . . . . . . . . . . . . . . Time . | . . . . . . . . . . . . . . . Parts Recycled . | . . . . . . . . . . . . . . . Recycled Matter . | . . . . . . . . . . . . . . . Retrieved Matter . | . . . . . . . . . . . . . . . Retrieved Components . | . . . . . . . . . . . . . . . Parts Scanalyzed 2 | . . . . 1 . . . . . . . . . 1 Part Schematics Acquired 2 | . . . . 1 . . . . . . . . . 1 Parts Damaged . | . . . . . . . . . . . . . . . Bothacking | -11 -10 -10 -7 -5 -5 -5 -5 -4 -4 -4 -4 -4 -3 -3 ------------ Run | Yrd Mat Sub Scr Fac Upp Upp Zhi Pro Fac Upp Upp War Pro Res Used RIF Installer . | . . . . . . . . . . . . . . . Robots Hacked . | . . . . . . . . . . . . . . . Non-combat . | . . . . . . . . . . . . . . . Combat . | . . . . . . . . . . . . . . . Robot Hacks Applied . | . . . . . . . . . . . . . . . Relay Couplers Released . | . . . . . . . . . . . . . . . Fabnet Peak Effective % . | . . . . . . . . . . . . . . . Robots Rewired . | . . . . . . . . . . . . . . . Allies Hacked . | . . . . . . . . . . . . . . . Hacks Repelled . | . . . . . . . . . . . . . . . Allies | -11 -10 -10 -7 -5 -5 -5 -5 -4 -4 -4 -4 -4 -3 -3 -------- Run | Yrd Mat Sub Scr Fac Upp Upp Zhi Pro Fac Upp Upp War Pro Res Total Allies . | . . . . . . . . . . . . . . . Largest Group . | . . . . . . . . . . . . . . . Highest-Rated Group . | . . . . . . . . . . . . . . . Highest-Rated Ally . | . . . . . . . . . . . . . . . Total Orders . | . . . . . . . . . . . . . . . Ally Attacks . | . . . . . . . . . . . . . . . Total Damage . | . . . . . . . . . . . . . . . Kills . | . . . . . . . . . . . . . . . Allies Corrupted . | . . . . . . . . . . . . . . . Allies Melted 5 | . . . 5 . . . . . . . . . . . Intel | -11 -10 -10 -7 -5 -5 -5 -5 -4 -4 -4 -4 -4 -3 -3 ------- Run | Yrd Mat Sub Scr Fac Upp Upp Zhi Pro Fac Upp Upp War Pro Res Active Infowar (turns) 4158 | . . . . 969 1021 984 16 644 . . . . 209 315 Sensors 311 | . . . . . . . . . . . . . . 311 A.S.S. 3634 | . . . . 969 1021 984 16 644 . . . . . . Jamming 367 | . . . . . . . . . . . . . 209 158 ECM 249 | . . . . . . . . . . . . . 88 161 Robot Analysis Total . | . . . . . . . . . . . . . . . Derelict Logs Recovered 6 | . . 1 . . 1 1 . 1 . . 2 . . . Drone Launches . | . . . . . . . . . . . . . . . Drone Recoveries . | . . . . . . . . . . . . . . . Exploration | -11 -10 -10 -7 -5 -5 -5 -5 -4 -4 -4 -4 -4 -3 -3 ------------- Run | Yrd Mat Sub Scr Fac Upp Upp Zhi Pro Fac Upp Upp War Pro Res Turns Passed 8884 | 92 183 234 3226 969 1021 984 16 776 198 375 140 34 240 396 Spaces Moved 8939 | 63 148 163 2459 687 885 879 15 585 361 1009 378 91 617 599 Core 429 | 20 . . . . . . . 161 165 . . . . 83 Treads . | . . . . . . . . . . . . . . . Legs 5702 | 43 148 163 2458 687 885 879 15 424 . . . . . . Wheels . | . . . . . . . . . . . . . . . Hover . | . . . . . . . . . . . . . . . Flight 2808 | . . . 1 . . . . . 196 1009 378 91 617 516 Fastest Speed 34 | 50 120 120 90 103 112 112 112 50 37 37 37 37 37 34 Average Speed 92 | 110 120 120 127 121 112 112 112 118 44 37 37 37 37 38 Slowest Speed 260 | 150 120 120 210 185 112 112 112 260 117 37 37 37 37 117 Overloaded Moves . | . . . . . . . . . . . . . . . Propulsion Burnouts . | . . . . . . . . . . . . . . . Robots Hopped 8 | . . . . . . . . . 2 3 . . . 3 Potential Cave-ins . | . . . . . . . . . . . . . . . Cave-ins Triggered . | . . . . . . . . . . . . . . . Exploration Rate (%) 41 | 4 43 15 93 13 80 73 7 63 10 81 48 13 56 16 Regions Visited 14 Branch Regions 10 Pre-discovered Areas 1 | . . . . . . . . 1 . . . . . . Known Exits Taken 5 | . . . . 1 1 1 1 . . . . . 1 . Unknown Exits Taken 9 | 1 1 1 1 . . . . 1 1 1 1 1 . . Scrap Searched 18 | . . . 7 . . 1 . 2 . 4 2 . 2 . Spaces Dug . | . . . . . . . . . . . . . . . Terrain Destroyed 18 | . . . 6 5 3 . . 4 . . . . . . Melee . | . . . . . . . . . . . . . . . Projectile 18 | . . . 6 5 3 . . 4 . . . . . . AOE . | . . . . . . . . . . . . . . . Terrain Rammed . | . . . . . . . . . . . . . . . Walls Destroyed . | . . . . . . . . . . . . . . . Machines Disabled . | . . . . . . . . . . . . . . . Actions | -11 -10 -10 -7 -5 -5 -5 -5 -4 -4 -4 -4 -4 -3 -3 --------- Run | Yrd Mat Sub Scr Fac Upp Upp Zhi Pro Fac Upp Upp War Pro Res Total 9440 | 83 153 177 2539 797 904 878 14 639 390 1007 377 90 627 765 Wait 208 | . . . . 29 4 . . 26 . . . . 3 146 Move 8909 | 62 147 162 2458 686 884 878 14 584 356 1002 377 90 616 593 Hop 8 | . . . . . . . . . 2 3 . . . 3 Pick Up 70 | 11 5 . 16 23 4 . . 2 2 . . . 2 5 Fast Attach 18 | 1 . . . 1 . . . . 11 1 . . 1 3 Attach 35 | 5 1 . . 11 . . . 6 4 . . . 3 5 Detach 8 | . . . . . . . . 2 5 . . . . 1 Swap 38 | . . . 24 12 1 . . . . . . . . 1 Drop 57 | 2 . . 24 12 4 . . . 5 1 . . 1 8 Fire 86 | 2 . 15 17 21 6 . . 19 5 . . . 1 . Melee 2 | . . . . 2 . . . . . . . . . . Ram . | . . . . . . . . . . . . . . . Kick . | . . . . . . . . . . . . . . . Crush . | . . . . . . . . . . . . . . . Escape Stasis . | . . . . . . . . . . . . . . . Rewire . | . . . . . . . . . . . . . . . Trap . | . . . . . . . . . . . . . . . Miscellaneous 1 | . . . . . 1 . . . . . . . . . Route ------- -11/Scrapyard -10/Materials (discovered 2 exits: [*Min] / [*Sub]) -10/Subcaves -7/Scraptown (discovered 2 exits: *Fac x2) -5/Factory -5/Upper Caves -5/Upper Caves -5/Zhirov -4/Proximity Caves -4/Factory (discovered 2 exits: Res / [*Upp]) -4/Upper Caves -4/Upper Caves -4/Warlord -3/Proximity Caves -3/Research (discovered 1 exit: Res) History --------- Turn | Location | Event 35 | -11/Scrapyard | Discovered new exit (range 13) 93 | -11/Scrapyard | Entered Materials 94 | -10/Materials | Met a group of wandering Federalists 188 | -10/Materials | Discovered new exit (range 13) 266 | -10/Materials | Discovered new exit (range 9) 276 | -10/Materials | Entered Subcaves 276 | -10/Subcaves | Accompanied by 1 ally 277 | -10/Subcaves | Continued accompanying wandering Federalists (2) 301 | -10/Subcaves | Build established: Mutant 362 | -10/Subcaves | Learned Materials stockpile data 487 | -10/Subcaves | Wandering Federalist uncovered a shortcut to Scraptown 510 | -10/Subcaves | Entered Scraptown 518 | -7/Scraptown | Lost 4 allies 742 | -7/Scraptown | Visited Red Mages 797 | -7/Scraptown | Visited Spacefarers 871 | -7/Scraptown | Visited Cave Peace 1158 | -7/Scraptown | Discovered new exit (range 5) 1284 | -7/Scraptown | Visited Comm Corps 1357 | -7/Scraptown | Visited Junk Repository 1417 | -7/Scraptown | Visited UFD Registry 1419 | -7/Scraptown | Registered with UFD as "Flashbucket" 1464 | -7/Scraptown | Visited TADAMA 1508 | -7/Scraptown | Visited Bundlers 1963 | -7/Scraptown | Visited LU-1G1's Boring Crew 2043 | -7/Scraptown | Visited Science Guys 2156 | -7/Scraptown | Visited Infowarlord's Domain 2172 | -7/Scraptown | Found Active Sensor Suite 2206 | -7/Scraptown | Visited Derelict Rescue Squad 2219 | -7/Scraptown | Found DRS Beacon 2509 | -7/Scraptown | Visited Sword Containment 2557 | -7/Scraptown | Visited Scrap Suit Storage 2586 | -7/Scraptown | Found Scrap Suit 2748 | -7/Scraptown | Visited Research Penetration Think Tank 2777 | -7/Scraptown | Visited Chapter 10 2855 | -7/Scraptown | Visited Junk Repository 2904 | -7/Scraptown | Visited Curators Association 3021 | -7/Scraptown | Discovered new exit (range 3) 3197 | -7/Scraptown | Met Optimus 3197 | -7/Scraptown | Accepted into 0bPrime 3338 | -7/Scraptown | Civil war broke out across Scraptown 3406 | -7/Scraptown | Lost 7 allies 3483 | -7/Scraptown | Found Thermal Lance 3522 | -7/Scraptown | Optimus destroyed in the chaos of civil war 3564 | -7/Scraptown | Lost 3 allies 3736 | -7/Scraptown | Entered Factory 3736 | -5/Factory | Evolved 10 slots: Power x1, Propulsion x2, Utility x6, Weapon x1 4059 | -5/Factory | Build established: Scavenger-Assassin 4419 | -5/Factory | Fabricated Adv. Force Field (x2) 4640 | -5/Factory | Discovered new exit (range 15) 4657 | -5/Factory | Identified exit to Upper Caves 4705 | -5/Factory | Entered Upper Caves 4707 | -5/Upper Caves | Attracted the attention of an 0b10 checkpoint 4710 | -5/Upper Caves | Encountered a Warlord checkpoint 4747 | -5/Upper Caves | Activated DRS Beacon 5572 | -5/Upper Caves | Learned Factory garrison access intel 5706 | -5/Upper Caves | Discovered new exit (range 6) 5717 | -5/Upper Caves | Identified exit to Upper Caves 5726 | -5/Upper Caves | Entered another Upper Caves area 5754 | -5/Upper Caves | Learned location of 1 exit from Factory 6235 | -5/Upper Caves | Entered a destroyed Warlord outpost 6439 | -5/Upper Caves | Encountered a Warlord checkpoint 6663 | -5/Upper Caves | Discovered new exit (range 12) 6682 | -5/Upper Caves | Identified exit to Zhirov 6710 | -5/Upper Caves | Entered Zhirov 6710 | -5/Zhirov | Discovered new exit (range 3) 6716 | -5/Zhirov | Identified exit to Proximity Caves 6726 | -5/Zhirov | Entered Proximity Caves 6726 | -4/Proximity Caves | Learned location of Quarantine (-2) 7113 | -4/Proximity Caves | Lost 4 parts (1p2n1u) 7121 | -4/Proximity Caves | Spotted B-86 Titan 7352 | -4/Proximity Caves | Build established: Assassin 7429 | -4/Proximity Caves | Core integrity fell below 50% 7457 | -4/Proximity Caves | Lost 13 parts (2p2n6u3w) 7499 | -4/Proximity Caves | Discovered new exit (range 5) 7502 | -4/Proximity Caves | Entered Factory 7502 | -4/Factory | Evolved 2 slots: Propulsion x1, Utility x1 7503 | -4/Factory | Identified exit to Research 7504 | -4/Factory | Loaded intel: 4 garrison access locations 7686 | -4/Factory | Build established: Mutant 7691 | -4/Factory | Discovered new exit (range 15) 7700 | -4/Factory | Entered Upper Caves 8069 | -4/Upper Caves | Discovered new exit (range 14) 8075 | -4/Upper Caves | Entered another Upper Caves area 8088 | -4/Upper Caves | Learned 8 Research zone layouts 8209 | -4/Upper Caves | Discovered new exit (range 15) 8214 | -4/Upper Caves | Learned Research terminal intel 8215 | -4/Upper Caves | Entered Warlord 8245 | -4/Warlord | Discovered new exit (range 9) 8249 | -4/Warlord | Entered Proximity Caves 8252 | -3/Proximity Caves | Spotter reported a threat 8255 | -3/Proximity Caves | Spotter reported a threat 8414 | -3/Proximity Caves | Spotter reported a threat 8467 | -3/Proximity Caves | Spotter reported a threat 8487 | -3/Proximity Caves | Discovered exit to Research (range 5) 8489 | -3/Proximity Caves | Entered Research 8489 | -3/Research | Evolved 2 slots: Propulsion x1, Weapon x1 8490 | -3/Research | Identified exit to Research 8491 | -3/Research | Loaded intel: 22 terminal locations 8646 | -3/Research | Fabricated Linear Accelerator (x2) 8739 | -3/Research | Search patrols dispatched 8834 | -3/Research | Lost 5 parts (1p2n2u) 8856 | -3/Research | Core integrity fell below 50% 8878 | -3/Research | Core integrity fell below 20% 8885 | -3/Research | Destroyed by H-71 Marshal with Heavy Mass Driver Last Messages --------------- 08847_ ALERT: Hostiles spotted, dispatching reinforcements to Terminal R005. 08847_ O-32 Director locks terminal. 08849_ Penetrated by Slug. 08856_ M-36 Artificer repairs S-43 Plague. 08864_ U-05 Engineer works on Catalytron. 08865_ Acquired Com. HERF Cannon. 08867_ Dropped Com. HERF Cannon. 08867_ K-01 Serf collects debris. 08868_ Slug penetrates Wall. 08871_ Penetrated by Slug. 08871_ Slug penetrates Wall. 08877_ Knocked back. 08878_ M-36 Artificer repairs S-43 Plague. 08880_ Slug penetrates Wall. 08881_ Penetrated by Slug. 08881_ Knocked back. 08882_ Acquired 3 matter. 08884_ Slug penetrates Wall. [Achievement: 5k Club] Map ----- +----------------------------------------------------+ | ?????? # + #????????????????????????? | | ?????????????????????????????????????????????????? | | ?????????????????????????????????????????????????? | | ?????????????????????????????????????????????????? | | ?????????????????????????????????????????????????? | | ?????????????????????????????????????????????????? | | ??????????????????????????????????##############?? | | ??????????????????????????????????# #?? | | ??????????????????????????????????# #?? | | ??????????????????????????????????# """ """ #?? | | ??????????????????????????????????# """ """ #?? | | ??????????????????????????????????# """ """ #?? | | ??????????????????????????????????# """ """ #?? | | ??????????????????????????????????# """ """ #?# | | ??????????????????????????????????# #?# | | ??????????????????????????????????# ### | | ??????????????????????????????????# # # | | ??????????????????????????????????# ### | | ??????????????????????????????????# #?# | | ???????????????????##+#################+#+###+##?# | | ???????????????????? #### | | ???????????????????? k | | ???????????????????? H | | ???????????????????? u t ##### | | ????????????????????????# ##########?# | | ????????????????????????#@ << #??# #?# | | ????????????????????????# A < #????????### | | ????????????????????????#% #????????# | | ????????????????????????# #????????# | | ????????????????????????# * s #????????# | | ????????????????????????# ss #????????+ | | ????????????????????????# ##;#+######?????# | | ????????????????????????# # m #?????# | | ????????????????????????# # % #?????# | | ????????????????????????# # #?????# | | ?????#############??????# # ] #?????+ | | ?????# #??????# # h #?????# | | ?????? #??????# # """ #?????# | | ?????? "" ! """#??????# # """ #?????# | | ?????#""" """#??????# # """ #?????# | | ?????#"T """######## ######/########## | | ??????""" # | | ?????# "" + | | ?????# """# | | ?????# """# | | ?????# """####+### ################## | | ?????# #??????# #????????????# % | | ?????# #??????# ########?????# % ! | | ???????? #??????# ** #?????# = * | | ?????#############??????# *| #?????# " | +----------------------------------------------------+ Best States ------------- Heat Dissipation 71 Energy Generation 50 Energy Capacity 555 Matter Stores 300 Matter Capacity 300 Sight Range 16 Robot Scan Range 20 Terrain Scan Density 10 ECM Strength 1 Jamming Range 16 Power Amplification 20 Additional Mass Support 9 Armor Coverage 225 Resistance: TH 25 Power Shielding 90 Propulsion Shielding 66 Point Defense Rating 160 Weapon Cycling 20 Evasion (%) 75 Core Analysis 6 Matter Filtering 50 Energy Filtering 30 Item Schematics ----------------- Prc. Matter Filter | -5/Factory | Scanalyzed Adv. Force Field | -3/Research | Scanalyzed Robot Schematics ------------------ None Fabricated ------------ Adv. Force Field | x2 | -5/Factory | Preloaded Linear Accelerator | x2 | -3/Research | Preloaded Repaired ---------- Nothing Alien Tech Used ----------------- None Achievements -------------- 5k Club Adventurer Dangerous Findings Dodgeball, But With Guns Explorer I Spy I'm Back, Baby! Just What I Needed Librarian Respectable Loadout Serviceable Loadout Streaker Challenges ------------ None Game ------ Seed BackupElectrostormDiverter Manual? 0 Play Time 02:09:26 Cumulative 6.8 hours Start 2025.05.25 @ 01:03:16 End 2025.05.25 @ 03:18:50 Sessions 1 Manual Loads 0 Difficulty Rogue Special Mode None Game No. 8 Rogue 8 Adventurer 0 Explorer 0 Win Type - Total 0 Types 0/0/0/0/0/0/0/0/0/0 Lore% 9 Gallery% 12 Achievement% 16 Wizard Run 0 Options --------- Layout 0 ASCII 0 Keyboard 0 Movement Arrows Keybinds 0 Fullscreen 1 Font 18/SmallcapsGlow Map View 76x50 Zoom Use 0% Tactical HUD 1 Map Filters NONE Filters NONE Steam 1 RUN: cb2d13c3-9ac5-4d00-aa4c-2ed764fbeb98